[Event "Titled Tuesday Blitz July 6 2021"]
[White "Quparadze, Giga"]
[Black "Mons, Leon"]
[WhiteFideId "13602250"]
[BlackFideId "4614950"]
[WhiteElo "2658"]
[BlackElo "2492"]
[Result "0-1"]
[Round "07"]
[TimeControl "180+1"]
[Date "2021.07.06"]
[WhiteClock "0:00:16"]
[BlackClock "0:00:42"]

1. e4 {[%clk 0:03:00]}  e5 {[%clk 0:02:59]} 2. Nf3 {[%clk 0:03:00]}  Nc6 {[%clk 0:03:00]} 3. Bb5 {[%clk 0:02:59]}  a6 {[%clk 0:03:00]} 4. Ba4 {[%clk 0:03:00]}  Nf6 {[%clk 0:03:00]} 5. O-O {[%clk 0:02:58]}  Be7 {[%clk 0:03:00]} 6. Bxc6 {[%clk 0:02:57]}  dxc6 {[%clk 0:03:00]} 7. d3 {[%clk 0:02:56]}  Bd6 {[%clk 0:03:00]} 8. Nbd2 {[%clk 0:02:56]}  Be6 {[%clk 0:03:00]} 9. d4 {[%clk 0:02:54]}  Nd7 {[%clk 0:02:56]} 10. c3 {[%clk 0:02:54]}  Qe7 {[%clk 0:02:52]} 11. Re1 {[%clk 0:02:53]}  O-O-O {[%clk 0:02:47]} 12. Nf1 {[%clk 0:02:52]}  f6 {[%clk 0:02:43]} 13. d5 {[%clk 0:02:47]}  cxd5 {[%clk 0:02:39]} 14. exd5 {[%clk 0:02:48]}  Bf7 {[%clk 0:02:33]} 15. Ne3 {[%clk 0:02:48]}  Nb6 {[%clk 0:02:22]} 16. c4 {[%clk 0:02:48]}  Bc5 {[%clk 0:02:17]} 17. Qe2 {[%clk 0:02:43]}  Qd7 {[%clk 0:02:02]} 18. a3 {[%clk 0:02:40]}  Rhe8 {[%clk 0:01:58]} 19. b4 {[%clk 0:02:40]}  Bd4 {[%clk 0:01:58]} 20. Bb2 {[%clk 0:02:36]}  Bh5 {[%clk 0:01:48]} 21. Rab1 {[%clk 0:02:08]}  Bxe3 {[%clk 0:01:26]} 22. Qxe3 {[%clk 0:02:06]}  Nxc4 {[%clk 0:01:26]} 23. Qa7 {[%clk 0:02:06]}  Qxd5 {[%clk 0:01:25]} 24. Nh4 {[%clk 0:01:07]}  Nxb2 {[%clk 0:01:17]} 25. Rxb2 {[%clk 0:00:55]}  Qd4 {[%clk 0:01:17]} 26. Qa8+ {[%clk 0:00:43]}  Kd7 {[%clk 0:01:17]} 27. Qxb7 {[%clk 0:00:43]}  Qxb2 {[%clk 0:01:08]} 28. Qd5+ {[%clk 0:00:29]}  Ke7 {[%clk 0:01:04]} 29. Nf5+ {[%clk 0:00:29]}  Kf8 {[%clk 0:01:03]} 30. Qc5+ {[%clk 0:00:29]}  Kg8 {[%clk 0:00:52]} 31. Qxc7 {[%clk 0:00:29]}  Bf7 {[%clk 0:00:53]} 32. h4 {[%clk 0:00:28]}  Qd2 {[%clk 0:00:52]} 33. Re3 {[%clk 0:00:27]}  Qd7 {[%clk 0:00:51]} 34. Nh6+ {[%clk 0:00:19]}  gxh6 {[%clk 0:00:51]} 35. Rg3+ {[%clk 0:00:20]}  Bg6 {[%clk 0:00:51]} 36. Qb6 {[%clk 0:00:19]}  Qd6 {[%clk 0:00:47]} 37. Qa7 {[%clk 0:00:19]}  h5 {[%clk 0:00:47]} 38. Qe3 {[%clk 0:00:18]}  Qd4 {[%clk 0:00:44]} 39. Qh6 {[%clk 0:00:17]}  Kf7 {[%clk 0:00:43]} 40. Rxg6 {[%clk 0:00:17]}  hxg6 {[%clk 0:00:44]} 41. Qh7+ {[%clk 0:00:17]}  Ke6 {[%clk 0:00:45]} 42. Qxg6 {[%clk 0:00:17]}  Rg8 {[%clk 0:00:44]} 43. Qh7 {[%clk 0:00:16]}  Qg4 {[%clk 0:00:43]} 44. g3 {[%clk 0:00:16]}  Qf3 {[%clk 0:00:42]} 0-1


[Site "https://www.chess.com"]

[Event "Titled Tuesday Blitz July 6 2021"]
[White "Roman, Rodrigo"]
[Black "Solon, Nathan"]
[WhiteFideId "3701220"]
[BlackFideId "2017229"]
[WhiteElo "2043"]
[BlackElo "2631"]
[Result "0-1"]
[Round "07"]
[TimeControl "180+1"]
[Date "2021.07.06"]
[WhiteClock "0:00:05"]
[BlackClock "0:00:38"]

1. Nf3 {[%clk 0:03:00]}  d5 {[%clk 0:02:59]} 2. g3 {[%clk 0:03:00]}  g6 {[%clk 0:02:59]} 3. Bg2 {[%clk 0:03:00]}  Bg7 {[%clk 0:02:59]} 4. O-O {[%clk 0:03:00]}  e5 {[%clk 0:02:59]} 5. d3 {[%clk 0:03:00]}  Ne7 {[%clk 0:02:58]} 6. c4 {[%clk 0:02:55]}  c6 {[%clk 0:02:58]} 7. cxd5 {[%clk 0:02:55]}  cxd5 {[%clk 0:02:58]} 8. Nc3 {[%clk 0:02:55]}  Nbc6 {[%clk 0:02:58]} 9. Bg5 {[%clk 0:02:48]}  h6 {[%clk 0:02:57]} 10. Bxe7 {[%clk 0:02:47]}  Nxe7 {[%clk 0:02:58]} 11. Rc1 {[%clk 0:02:47]}  O-O {[%clk 0:02:52]} 12. e4 {[%clk 0:02:47]}  d4 {[%clk 0:02:49]} 13. Ne2 {[%clk 0:02:41]}  Be6 {[%clk 0:02:48]} 14. a3 {[%clk 0:02:39]}  Qb6 {[%clk 0:02:47]} 15. b4 {[%clk 0:02:39]}  a5 {[%clk 0:02:45]} 16. bxa5 {[%clk 0:02:30]}  Rxa5 {[%clk 0:02:45]} 17. Rb1 {[%clk 0:02:30]}  Qa7 {[%clk 0:02:38]} 18. Qc1 {[%clk 0:02:27]}  Rc8 {[%clk 0:02:28]} 19. Qb2 {[%clk 0:02:26]}  b5 {[%clk 0:02:15]} 20. Ra1 {[%clk 0:01:49]}  Ra8 {[%clk 0:02:02]} 21. Rfc1 {[%clk 0:01:29]}  Qb6 {[%clk 0:01:47]} 22. Qb4 {[%clk 0:01:21]}  Bf8 {[%clk 0:01:26]} 23. Qc5 {[%clk 0:01:21]}  Qxc5 {[%clk 0:01:19]} 24. Rxc5 {[%clk 0:01:22]}  f6 {[%clk 0:01:13]} 25. h4 {[%clk 0:00:40]}  h5 {[%clk 0:01:12]} 26. Nfxd4 {[%clk 0:00:32]}  exd4 {[%clk 0:01:07]} 27. Nxd4 {[%clk 0:00:33]}  Bf7 {[%clk 0:01:03]} 28. Nxb5 {[%clk 0:00:24]}  Nc8 {[%clk 0:00:54]} 29. Rc7 {[%clk 0:00:05]}  Rxb5 {[%clk 0:00:50]} 30. a4 {[%clk 0:00:06]}  Rc5 {[%clk 0:00:47]} 31. e5 {[%clk 0:00:07]}  Rxc7 {[%clk 0:00:45]} 32. Bxa8 {[%clk 0:00:07]}  fxe5 {[%clk 0:00:45]} 33. Be4 {[%clk 0:00:07]}  Bc5 {[%clk 0:00:44]} 34. a5 {[%clk 0:00:08]}  Bd4 {[%clk 0:00:44]} 35. Rb1 {[%clk 0:00:07]}  Rc2 {[%clk 0:00:43]} 36. Rb8 {[%clk 0:00:06]}  Kg7 {[%clk 0:00:41]} 37. Kf1 {[%clk 0:00:07]}  Rxf2+ {[%clk 0:00:40]} 38. Ke1 {[%clk 0:00:07]}  Nd6 {[%clk 0:00:39]} 39. a6 {[%clk 0:00:04]}  Nxe4 {[%clk 0:00:38]} 40. dxe4 {[%clk 0:00:05]}  Ra2 {[%clk 0:00:38]} 0-1


[Site "https://www.chess.com"]

[Event "Titled Tuesday Blitz July 6 2021"]
[White "Saravana, Krishnan P."]
[Black "Costachi, Mihnea"]
[WhiteFideId "5018382"]
[BlackFideId "1217518"]
[WhiteElo "2245"]
[BlackElo "2482"]
[Result "1-0"]
[Round "07"]
[TimeControl "180+1"]
[Date "2021.07.06"]
[WhiteClock "0:01:05"]
[BlackClock "0:01:20"]

1. e4 {[%clk 0:03:00]}  e5 {[%clk 0:02:58]} 2. Nf3 {[%clk 0:03:00]}  Nc6 {[%clk 0:02:59]} 3. Bb5 {[%clk 0:02:59]}  a6 {[%clk 0:02:59]} 4. Ba4 {[%clk 0:02:59]}  d6 {[%clk 0:03:00]} 5. O-O {[%clk 0:02:58]}  Bd7 {[%clk 0:03:00]} 6. c3 {[%clk 0:02:58]}  g6 {[%clk 0:03:01]} 7. d4 {[%clk 0:02:57]}  Bg7 {[%clk 0:03:01]} 8. Bg5 {[%clk 0:02:57]}  f6 {[%clk 0:03:01]} 9. Be3 {[%clk 0:02:56]}  Qe7 {[%clk 0:03:01]} 10. c4 {[%clk 0:02:50]}  exd4 {[%clk 0:02:57]} 11. Nxd4 {[%clk 0:02:49]}  Nh6 {[%clk 0:02:40]} 12. Nc3 {[%clk 0:02:45]}  Nxd4 {[%clk 0:02:38]} 13. Bxd4 {[%clk 0:02:38]}  Bxa4 {[%clk 0:02:36]} 14. Qxa4+ {[%clk 0:02:35]}  Qd7 {[%clk 0:02:36]} 15. Qb3 {[%clk 0:02:35]}  O-O-O {[%clk 0:02:28]} 16. Rac1 {[%clk 0:02:27]}  f5 {[%clk 0:02:28]} 17. Bxg7 {[%clk 0:02:20]}  Qxg7 {[%clk 0:02:28]} 18. c5 {[%clk 0:02:17]}  dxc5 {[%clk 0:02:27]} 19. Nd5 {[%clk 0:02:17]}  fxe4 {[%clk 0:02:17]} 20. Rxc5 {[%clk 0:02:15]}  c6 {[%clk 0:02:16]} 21. Rfc1 {[%clk 0:02:15]}  Rd6 {[%clk 0:02:13]} 22. Qb6 {[%clk 0:02:07]}  Nf5 {[%clk 0:01:36]} 23. Qa7 {[%clk 0:01:59]}  Qxb2 {[%clk 0:01:34]} 24. R5c2 {[%clk 0:01:17]}  Qd4 {[%clk 0:01:26]} 25. Rxc6+ {[%clk 0:01:08]}  Rxc6 {[%clk 0:01:23]} 26. Rxc6+ {[%clk 0:01:07]}  Kd8 {[%clk 0:01:19]} 27. Qb8+ {[%clk 0:01:06]}  Kd7 {[%clk 0:01:19]} 28. Qxb7+ {[%clk 0:01:06]}  Ke8 {[%clk 0:01:20]} 29. Rc8# {[%clk 0:01:05]} 1-0


[Site "https://www.chess.com"]

[Event "Titled Tuesday Blitz July 6 2021"]
[White "Sawlin, Leonid"]
[Black "Erdogdu, Mert"]
[WhiteFideId "4689542"]
[BlackFideId "6301495"]
[WhiteElo "2412"]
[BlackElo "2485"]
[Result "0-1"]
[Round "07"]
[TimeControl "180+1"]
[Date "2021.07.06"]
[WhiteClock "0:02:16"]
[BlackClock "0:01:43"]

1. e4 {[%clk 0:02:54]}  c5 {[%clk 0:02:59]} 2. Nf3 {[%clk 0:02:54]}  d6 {[%clk 0:03:00]} 3. d4 {[%clk 0:02:55]}  cxd4 {[%clk 0:03:00]} 4. Nxd4 {[%clk 0:02:55]}  Nf6 {[%clk 0:03:00]} 5. Nc3 {[%clk 0:02:56]}  a6 {[%clk 0:03:01]} 6. Bg5 {[%clk 0:02:57]}  e6 {[%clk 0:03:01]} 7. f4 {[%clk 0:02:58]}  Qb6 {[%clk 0:03:01]} 8. Qd2 {[%clk 0:02:56]}  Nc6 {[%clk 0:03:01]} 9. Nxc6 {[%clk 0:02:51]}  bxc6 {[%clk 0:02:59]} 10. b3 {[%clk 0:02:51]}  d5 {[%clk 0:02:53]} 11. Bxf6 {[%clk 0:02:47]}  gxf6 {[%clk 0:02:53]} 12. exd5 {[%clk 0:02:47]}  cxd5 {[%clk 0:02:53]} 13. Na4 {[%clk 0:02:45]}  Qb8 {[%clk 0:02:38]} 14. Bd3 {[%clk 0:02:45]}  f5 {[%clk 0:02:37]} 15. O-O-O {[%clk 0:02:32]}  Bd7 {[%clk 0:02:30]} 16. Nb2 {[%clk 0:02:31]}  Bg7 {[%clk 0:02:28]} 17. Kb1 {[%clk 0:02:30]}  a5 {[%clk 0:02:11]} 18. h3 {[%clk 0:02:31]}  a4 {[%clk 0:02:07]} 19. g4 {[%clk 0:02:27]}  axb3 {[%clk 0:02:03]} 20. cxb3 {[%clk 0:02:28]}  Qa7 {[%clk 0:02:02]} 21. a4 {[%clk 0:02:21]}  Rb8 {[%clk 0:02:00]} 22. Bc2 {[%clk 0:02:20]}  Bxa4 {[%clk 0:01:46]} 23. Nxa4 {[%clk 0:02:16]}  Qxa4 {[%clk 0:01:43]} 0-1


[Site "https://www.chess.com"]

[Event "Titled Tuesday Blitz July 6 2021"]
[White "Shahade, Gregory"]
[Black "Stojanovski, Sandi"]
[WhiteFideId "2009064"]
[BlackFideId "1403249"]
[WhiteElo "2735"]
[BlackElo "2367"]
[Result "1/2-1/2"]
[Round "07"]
[TimeControl "180+1"]
[Date "2021.07.06"]
[WhiteClock "0:00:05"]
[BlackClock "0:00:05"]

1. e4 {[%clk 0:03:00]}  c5 {[%clk 0:02:59]} 2. Nf3 {[%clk 0:03:00]}  Nc6 {[%clk 0:02:59]} 3. d4 {[%clk 0:03:00]}  cxd4 {[%clk 0:02:59]} 4. Nxd4 {[%clk 0:03:01]}  Nf6 {[%clk 0:02:59]} 5. Nc3 {[%clk 0:03:02]}  e5 {[%clk 0:02:59]} 6. Ndb5 {[%clk 0:03:02]}  d6 {[%clk 0:02:59]} 7. Bg5 {[%clk 0:03:02]}  a6 {[%clk 0:02:59]} 8. Na3 {[%clk 0:03:02]}  b5 {[%clk 0:02:59]} 9. Nd5 {[%clk 0:03:03]}  Be7 {[%clk 0:02:59]} 10. Bxf6 {[%clk 0:03:04]}  Bxf6 {[%clk 0:02:58]} 11. c4 {[%clk 0:03:04]}  b4 {[%clk 0:02:58]} 12. Nc2 {[%clk 0:03:05]}  O-O {[%clk 0:02:58]} 13. g3 {[%clk 0:03:05]}  a5 {[%clk 0:02:55]} 14. Bg2 {[%clk 0:03:04]}  Be6 {[%clk 0:02:54]} 15. O-O {[%clk 0:03:03]}  Rc8 {[%clk 0:02:53]} 16. b3 {[%clk 0:02:53]}  Bxd5 {[%clk 0:02:48]} 17. cxd5 {[%clk 0:02:49]}  Nd4 {[%clk 0:02:46]} 18. Ne3 {[%clk 0:02:38]}  a4 {[%clk 0:02:32]} 19. Nc4 {[%clk 0:02:37]}  Rc5 {[%clk 0:02:23]} 20. Rc1 {[%clk 0:02:24]}  Qc7 {[%clk 0:02:15]} 21. Kh1 {[%clk 0:02:18]}  Rc8 {[%clk 0:02:06]} 22. Bh3 {[%clk 0:02:07]}  Ra8 {[%clk 0:02:03]} 23. Qd3 {[%clk 0:01:33]}  g6 {[%clk 0:01:40]} 24. Rfd1 {[%clk 0:01:27]}  h5 {[%clk 0:01:18]} 25. Bf1 {[%clk 0:01:23]}  h4 {[%clk 0:01:15]} 26. Qb1 {[%clk 0:01:12]}  hxg3 {[%clk 0:01:13]} 27. hxg3 {[%clk 0:01:11]}  Kg7 {[%clk 0:01:08]} 28. Kg2 {[%clk 0:01:11]}  Rh8 {[%clk 0:01:04]} 29. Rxd4 {[%clk 0:00:37]}  exd4 {[%clk 0:01:03]} 30. bxa4 {[%clk 0:00:29]}  Rc8 {[%clk 0:00:41]} 31. Qxb4 {[%clk 0:00:28]}  Rb8 {[%clk 0:00:40]} 32. Qd2 {[%clk 0:00:24]}  Qd7 {[%clk 0:00:34]} 33. a5 {[%clk 0:00:20]}  Qd8 {[%clk 0:00:30]} 34. Nb6 {[%clk 0:00:18]}  Qc7 {[%clk 0:00:20]} 35. Rxc5 {[%clk 0:00:17]}  dxc5 {[%clk 0:00:18]} 36. f4 {[%clk 0:00:15]}  c4 {[%clk 0:00:12]} 37. Bxc4 {[%clk 0:00:11]}  Rxb6 {[%clk 0:00:11]} 38. axb6 {[%clk 0:00:12]}  Qxc4 {[%clk 0:00:11]} 39. b7 {[%clk 0:00:10]}  Qb5 {[%clk 0:00:07]} 40. d6 {[%clk 0:00:09]}  d3 {[%clk 0:00:06]} 41. e5 {[%clk 0:00:08]}  Bd8 {[%clk 0:00:05]} 42. b8=Q {[%clk 0:00:07]}  Qxb8 {[%clk 0:00:05]} 43. Qxd3 {[%clk 0:00:07]}  Qa8+ {[%clk 0:00:05]} 44. Kh3 {[%clk 0:00:07]}  Qxa2 {[%clk 0:00:05]} 45. Qf3 {[%clk 0:00:07]}  Qe6+ {[%clk 0:00:05]} 46. Kg2 {[%clk 0:00:07]}  Qf5 {[%clk 0:00:05]} 47. Qd5 {[%clk 0:00:06]}  Qe6 {[%clk 0:00:06]} 48. Qe4 {[%clk 0:00:06]}  Qf5 {[%clk 0:00:05]} 49. Qd5 {[%clk 0:00:06]}  Qe6 {[%clk 0:00:06]} 50. Qe4 {[%clk 0:00:07]}  Qf5 {[%clk 0:00:05]} 51. Qd5 {[%clk 0:00:05]} 1/2-1/2


[Site "https://www.chess.com"]

[Event "Titled Tuesday Blitz July 6 2021"]
[White "Siddharth, Jagadeesh"]
[Black "Zhuravlev, Alexey"]
[WhiteFideId "5818320"]
[BlackFideId "4164199"]
[WhiteElo "2127"]
[BlackElo "2447"]
[Result "0-1"]
[Round "07"]
[TimeControl "180+1"]
[Date "2021.07.06"]
[WhiteClock "0:00:08"]
[BlackClock "0:00:13"]

1. d4 {[%clk 0:03:00]}  Nf6 {[%clk 0:02:56]} 2. c4 {[%clk 0:03:00]}  g6 {[%clk 0:02:53]} 3. Nc3 {[%clk 0:03:00]}  Bg7 {[%clk 0:02:53]} 4. e4 {[%clk 0:03:00]}  d6 {[%clk 0:02:54]} 5. Be2 {[%clk 0:03:00]}  O-O {[%clk 0:02:53]} 6. Nf3 {[%clk 0:03:01]}  e5 {[%clk 0:02:50]} 7. O-O {[%clk 0:03:01]}  Nc6 {[%clk 0:02:50]} 8. d5 {[%clk 0:03:02]}  Ne7 {[%clk 0:02:50]} 9. b4 {[%clk 0:03:02]}  Nh5 {[%clk 0:02:50]} 10. c5 {[%clk 0:03:02]}  Nf4 {[%clk 0:02:10]} 11. a4 {[%clk 0:03:02]}  Bg4 {[%clk 0:01:51]} 12. h3 {[%clk 0:02:44]}  Bh5 {[%clk 0:01:50]} 13. Bxf4 {[%clk 0:02:09]}  exf4 {[%clk 0:01:49]} 14. Rc1 {[%clk 0:02:10]}  f5 {[%clk 0:01:46]} 15. Nd4 {[%clk 0:02:04]}  Bxe2 {[%clk 0:01:37]} 16. Ncxe2 {[%clk 0:02:04]}  fxe4 {[%clk 0:01:31]} 17. Ne6 {[%clk 0:02:04]}  Qd7 {[%clk 0:01:32]} 18. cxd6 {[%clk 0:01:59]}  Qxd6 {[%clk 0:01:30]} 19. Nxg7 {[%clk 0:01:55]}  Kxg7 {[%clk 0:01:28]} 20. Qd4+ {[%clk 0:01:55]}  Kg8 {[%clk 0:01:25]} 21. Qxe4 {[%clk 0:01:55]}  Nxd5 {[%clk 0:01:22]} 22. Nc3 {[%clk 0:01:46]}  Nxc3 {[%clk 0:01:16]} 23. Rxc3 {[%clk 0:01:47]}  c6 {[%clk 0:01:12]} 24. b5 {[%clk 0:01:47]}  Rae8 {[%clk 0:00:56]} 25. Qc4+ {[%clk 0:01:45]}  Qe6 {[%clk 0:00:56]} 26. bxc6 {[%clk 0:01:44]}  bxc6 {[%clk 0:00:56]} 27. Qxc6 {[%clk 0:01:42]}  Qxc6 {[%clk 0:00:51]} 28. Rxc6 {[%clk 0:01:43]}  f3 {[%clk 0:00:51]} 29. Rc7 {[%clk 0:01:36]}  fxg2 {[%clk 0:00:51]} 30. Kxg2 {[%clk 0:01:35]}  Rf7 {[%clk 0:00:51]} 31. Rfc1 {[%clk 0:01:33]}  Ree7 {[%clk 0:00:51]} 32. Rxe7 {[%clk 0:01:31]}  Rxe7 {[%clk 0:00:51]} 33. Rc6 {[%clk 0:01:31]}  Kg7 {[%clk 0:00:51]} 34. Ra6 {[%clk 0:01:31]}  Kh6 {[%clk 0:00:51]} 35. Kg3 {[%clk 0:01:27]}  Kg5 {[%clk 0:00:49]} 36. f4+ {[%clk 0:01:25]}  Kf5 {[%clk 0:00:48]} 37. Kf3 {[%clk 0:01:25]}  Rc7 {[%clk 0:00:35]} 38. Ra5+ {[%clk 0:01:17]}  Kf6 {[%clk 0:00:35]} 39. Ke4 {[%clk 0:01:17]}  Rc4+ {[%clk 0:00:34]} 40. Kd5 {[%clk 0:01:14]}  Rxf4 {[%clk 0:00:33]} 41. Rxa7 {[%clk 0:01:15]}  h5 {[%clk 0:00:30]} 42. a5 {[%clk 0:01:14]}  Rf3 {[%clk 0:00:28]} 43. Rb7 {[%clk 0:00:59]}  Rxh3 {[%clk 0:00:26]} 44. a6 {[%clk 0:00:59]}  Ra3 {[%clk 0:00:26]} 45. Rb6+ {[%clk 0:00:59]}  Kf5 {[%clk 0:00:24]} 46. Kc6 {[%clk 0:00:57]}  h4 {[%clk 0:00:22]} 47. Kb7 {[%clk 0:00:54]}  h3 {[%clk 0:00:22]} 48. Rb5+ {[%clk 0:00:17]}  Kf4 {[%clk 0:00:22]} 49. Rb4+ {[%clk 0:00:16]}  Kf3 {[%clk 0:00:22]} 50. a7 {[%clk 0:00:16]}  g5 {[%clk 0:00:18]} 51. a8=Q {[%clk 0:00:13]}  Rxa8 {[%clk 0:00:17]} 52. Kxa8 {[%clk 0:00:14]}  h2 {[%clk 0:00:15]} 53. Rb3+ {[%clk 0:00:13]}  Kg4 {[%clk 0:00:15]} 54. Rb4+ {[%clk 0:00:13]}  Kh3 {[%clk 0:00:15]} 55. Rb3+ {[%clk 0:00:13]}  Kh4 {[%clk 0:00:15]} 56. Rb1 {[%clk 0:00:11]}  g4 {[%clk 0:00:15]} 57. Rb7 {[%clk 0:00:11]}  Kg3 {[%clk 0:00:15]} 58. Rh7 {[%clk 0:00:08]}  Kg2 {[%clk 0:00:15]} 59. Kb8 {[%clk 0:00:06]}  h1=Q {[%clk 0:00:14]} 60. Rg7 {[%clk 0:00:07]}  g3 {[%clk 0:00:13]} 61. Kc7 {[%clk 0:00:07]}  Qd1 {[%clk 0:00:13]} 62. Rd7 {[%clk 0:00:07]}  Qxd7+ {[%clk 0:00:12]} 63. Kxd7 {[%clk 0:00:08]}  Kf2 {[%clk 0:00:13]} 0-1


[Site "https://www.chess.com"]

[Event "Titled Tuesday Blitz July 6 2021"]
[White "Sliwicki, Damian"]
[Black "Mohammad Fahad, Rahman"]
[WhiteFideId "1127128"]
[BlackFideId "10207791"]
[WhiteElo "2149"]
[BlackElo "2323"]
[Result "0-1"]
[Round "07"]
[TimeControl "180+1"]
[Date "2021.07.06"]
[WhiteClock "0:00:01"]
[BlackClock "0:00:05"]

1. e4 {[%clk 0:03:00]}  c5 {[%clk 0:03:00]} 2. Nf3 {[%clk 0:02:56]}  e6 {[%clk 0:02:59]} 3. d4 {[%clk 0:02:55]}  cxd4 {[%clk 0:03:00]} 4. Nxd4 {[%clk 0:02:56]}  Nc6 {[%clk 0:03:00]} 5. Nc3 {[%clk 0:02:56]}  a6 {[%clk 0:03:00]} 6. Nb3 {[%clk 0:02:50]}  Qc7 {[%clk 0:02:57]} 7. Bd3 {[%clk 0:02:44]}  Nf6 {[%clk 0:02:57]} 8. O-O {[%clk 0:02:43]}  h5 {[%clk 0:02:51]} 9. f4 {[%clk 0:02:43]}  Na5 {[%clk 0:02:34]} 10. Kh1 {[%clk 0:02:38]}  Nxb3 {[%clk 0:02:31]} 11. axb3 {[%clk 0:02:39]}  Bc5 {[%clk 0:02:30]} 12. e5 {[%clk 0:02:27]}  Ng4 {[%clk 0:02:29]} 13. Ne4 {[%clk 0:02:27]}  b6 {[%clk 0:02:12]} 14. c3 {[%clk 0:02:05]}  Bb7 {[%clk 0:01:57]} 15. b4 {[%clk 0:02:01]}  Be7 {[%clk 0:01:45]} 16. h3 {[%clk 0:01:50]}  Nh6 {[%clk 0:01:32]} 17. Qxh5 {[%clk 0:01:46]}  O-O-O {[%clk 0:01:32]} 18. Bxa6 {[%clk 0:01:39]}  Bxa6 {[%clk 0:01:30]} 19. Rxa6 {[%clk 0:01:32]}  Qb7 {[%clk 0:01:20]} 20. Qe2 {[%clk 0:01:29]}  Nf5 {[%clk 0:01:19]} 21. Rf3 {[%clk 0:01:26]}  d5 {[%clk 0:00:52]} 22. Qb5 {[%clk 0:01:18]}  dxe4 {[%clk 0:00:44]} 23. Rxb6 {[%clk 0:01:12]}  Qxb6 {[%clk 0:00:36]} 24. Qxb6 {[%clk 0:01:13]}  Rd1+ {[%clk 0:00:30]} 25. Kh2 {[%clk 0:00:59]}  exf3 {[%clk 0:00:30]} 26. Qc6+ {[%clk 0:00:30]}  Kd8 {[%clk 0:00:29]} 27. Qxf3 {[%clk 0:00:26]}  Rxc1 {[%clk 0:00:20]} 28. Qa8+ {[%clk 0:00:26]}  Kd7 {[%clk 0:00:19]} 29. Qb7+ {[%clk 0:00:25]}  Ke8 {[%clk 0:00:18]} 30. Qc6+ {[%clk 0:00:20]}  Kd8 {[%clk 0:00:14]} 31. Qa8+ {[%clk 0:00:21]}  Kc7 {[%clk 0:00:13]} 32. Qxh8 {[%clk 0:00:22]}  Bh4 {[%clk 0:00:13]} 33. g4 {[%clk 0:00:19]}  Rc2+ {[%clk 0:00:06]} 34. Kh1 {[%clk 0:00:18]}  Ng3+ {[%clk 0:00:06]} 35. Kg1 {[%clk 0:00:19]}  Ne2+ {[%clk 0:00:06]} 36. Kf1 {[%clk 0:00:19]}  Bg3 {[%clk 0:00:04]} 37. Qxg7 {[%clk 0:00:14]}  Nxf4 {[%clk 0:00:04]} 38. Qxf7+ {[%clk 0:00:08]}  Kb6 {[%clk 0:00:05]} 39. Qd7 {[%clk 0:00:01]}  Rc1+ {[%clk 0:00:05]} 0-1


[Site "https://www.chess.com"]

[Event "Titled Tuesday Blitz July 6 2021"]
[White "Timmermans, Mark"]
[Black "Pham, Le Thao Nguyen"]
[WhiteFideId "1026399"]
[BlackFideId "12401226"]
[WhiteElo "2460"]
[BlackElo "2286"]
[Result "0-1"]
[Round "07"]
[TimeControl "180+1"]
[Date "2021.07.06"]
[WhiteClock "0:00:08"]
[BlackClock "0:00:16"]

1. b4 {[%clk 0:03:00]}  d5 {[%clk 0:02:58]} 2. Bb2 {[%clk 0:03:00]}  Bf5 {[%clk 0:02:56]} 3. e3 {[%clk 0:03:01]}  e6 {[%clk 0:02:57]} 4. c4 {[%clk 0:03:00]}  Nf6 {[%clk 0:02:53]} 5. b5 {[%clk 0:03:00]}  Be7 {[%clk 0:02:51]} 6. a4 {[%clk 0:03:00]}  O-O {[%clk 0:02:50]} 7. Nf3 {[%clk 0:03:00]}  Nbd7 {[%clk 0:02:50]} 8. Be2 {[%clk 0:03:00]}  h6 {[%clk 0:02:40]} 9. O-O {[%clk 0:02:59]}  Nc5 {[%clk 0:02:36]} 10. Nc3 {[%clk 0:02:59]}  Nd3 {[%clk 0:02:30]} 11. Ba3 {[%clk 0:02:49]}  dxc4 {[%clk 0:02:28]} 12. Nd4 {[%clk 0:02:49]}  Bg6 {[%clk 0:02:25]} 13. Nc2 {[%clk 0:02:36]}  a6 {[%clk 0:02:16]} 14. Bxe7 {[%clk 0:02:34]}  Qxe7 {[%clk 0:02:16]} 15. bxa6 {[%clk 0:02:27]}  Rxa6 {[%clk 0:02:13]} 16. Na3 {[%clk 0:02:27]}  Qb4 {[%clk 0:01:55]} 17. Nc2 {[%clk 0:02:13]}  Qc5 {[%clk 0:01:49]} 18. Rb1 {[%clk 0:02:10]}  Rb6 {[%clk 0:01:33]} 19. Rxb6 {[%clk 0:01:41]}  Qxb6 {[%clk 0:01:30]} 20. Qa1 {[%clk 0:01:42]}  Qc5 {[%clk 0:00:56]} 21. Rb1 {[%clk 0:01:40]}  b6 {[%clk 0:00:55]} 22. Rb5 {[%clk 0:01:39]}  Qd6 {[%clk 0:00:54]} 23. Na3 {[%clk 0:01:36]}  Ne5 {[%clk 0:00:33]} 24. f4 {[%clk 0:01:08]}  Nc6 {[%clk 0:00:32]} 25. Nxc4 {[%clk 0:01:08]}  Qd7 {[%clk 0:00:33]} 26. d4 {[%clk 0:00:57]}  Ne4 {[%clk 0:00:29]} 27. Ne5 {[%clk 0:00:56]}  Nxe5 {[%clk 0:00:29]} 28. fxe5 {[%clk 0:00:57]}  Nxc3 {[%clk 0:00:27]} 29. Qxc3 {[%clk 0:00:58]}  Be4 {[%clk 0:00:27]} 30. Bf1 {[%clk 0:00:51]}  Ra8 {[%clk 0:00:25]} 31. Rb4 {[%clk 0:00:51]}  Rxa4 {[%clk 0:00:24]} 32. Rxa4 {[%clk 0:00:50]}  Qxa4 {[%clk 0:00:25]} 33. Qxc7 {[%clk 0:00:50]}  Qd1 {[%clk 0:00:21]} 34. Qc3 {[%clk 0:00:34]}  b5 {[%clk 0:00:21]} 35. Kf2 {[%clk 0:00:34]}  Qb1 {[%clk 0:00:19]} 36. d5 {[%clk 0:00:16]}  exd5 {[%clk 0:00:16]} 37. Qc8+ {[%clk 0:00:15]}  Kh7 {[%clk 0:00:16]} 38. e6 {[%clk 0:00:16]}  fxe6 {[%clk 0:00:17]} 39. Qxe6 {[%clk 0:00:16]}  b4 {[%clk 0:00:17]} 40. Be2 {[%clk 0:00:12]}  b3 {[%clk 0:00:16]} 41. Bf3 {[%clk 0:00:10]}  Qc2+ {[%clk 0:00:15]} 42. Kg3 {[%clk 0:00:11]}  b2 {[%clk 0:00:15]} 43. Bxe4+ {[%clk 0:00:10]}  Qxe4 {[%clk 0:00:16]} 44. Qb6 {[%clk 0:00:08]}  b1=Q {[%clk 0:00:16]} 0-1


[Site "https://www.chess.com"]